fUST/lending_fUST_20250513
["ID","MTS","AMOUNT","RATE_DAILY","PERIOD"]
[360877626,1747095047328,-697.17,0.00019178,2]
[360877627,1747095047337,-400.0,0.00019178,2]
[360877629,1747095047346,-400.0,0.00019178,2]
[360877631,1747095047356,-400.0,0.00019178,2]
[360877633,1747095047366,-1423.88,0.00019178,2]
[360877634,1747095047375,-400.0,0.00019178,2]
[360877635,1747095047384,-500.0,0.00019178,2]
[360877636,1747095047394,-500.0,0.00019178,2]
[360877637,1747095047403,-500.0,0.00019178,2]
[360877638,1747095047413,-500.0,0.00019178,2]
[360877639,1747095047422,-500.0,0.00019178,2]
[360877640,1747095047431,-500.0,0.00019178,2]
[360877641,1747095047440,-500.0,0.00019178,2]
[360877642,1747095047450,-500.0,0.00019178,2]
[360877643,1747095047459,-733.0,0.00019178,2]
[360877644,1747095047469,-500.0,0.00019178,2]
[360877645,1747095047479,-350.9305543,0.00019178,2]
[360877646,1747095047488,-400.0,0.00019178,2]
[360877647,1747095047497,-200.0,0.00019178,2]
[360877648,1747095047507,-400.0,0.00019178,2]
[360877649,1747095047517,-991.66,0.00019178,2]
[360877650,1747095047527,-2557.02,0.00019178,2]
[360877651,1747095047536,-400.0,0.00019178,2]
[360877652,1747095047546,-1831.34,0.00019178,2]
[360877653,1747095047555,-400.0,0.00019178,2]
[360877654,1747095047565,-529.89,0.00019178,2]
[360877655,1747095047574,-400.0,0.00019178,2]
[360877656,1747095047584,-816.49,0.00019178,2]
[360877657,1747095047594,-210.75703795,0.00019178,2]
[360877658,1747095047605,-400.0,0.00019178,2]
[360877659,1747095047615,-400.0,0.00019178,2]
[360877660,1747095047624,-400.0,0.00019178,2]
[360877661,1747095047634,-400.0,0.00019178,2]
[360877662,1747095047644,-1147.72,0.00019178,2]
[360877663,1747095047654,-400.0,0.00019178,2]
[360877664,1747095047663,-400.0,0.00019178,2]
[360877665,1747095047673,-358.0,0.00019178,2]
[360877666,1747095047685,-400.0,0.00019178,2]
[360877667,1747095047696,-400.0,0.00019178,2]
[360877668,1747095047706,-400.0,0.00019178,2]
[360877669,1747095047716,-400.0,0.00019178,2]
[360877670,1747095047725,-400.0,0.00019178,2]
[360877671,1747095047735,-400.0,0.00019178,2]
[360877672,1747095047745,-400.0,0.00019178,2]
[360877673,1747095047755,-432.28,0.00019178,2]
[360877674,1747095047767,-400.0,0.00019178,2]
[360877675,1747095047776,-200.0,0.00019178,2]
[360877676,1747095047786,-400.0,0.00019178,2]
[360877677,1747095047796,-400.0,0.00019178,2]
[360877678,1747095047806,-1158.03,0.00019178,2]
[360877679,1747095047815,-1440.67,0.00019178,2]
[360877680,1747095047825,-400.0,0.00019178,2]
[360877681,1747095047835,-400.0,0.00019178,2]
[360877682,1747095047845,-400.0,0.00019178,2]
[360877683,1747095047856,-400.0,0.00019178,2]
[360877684,1747095047866,-648.44,0.00019178,2]
[360877685,1747095047876,-151.0,0.00019178,2]
[360877686,1747095047887,-400.0,0.00019178,2]
[360877687,1747095047897,-519.12,0.00019178,2]
[360877688,1747095047906,-400.0,0.00019178,2]
[360877689,1747095047916,-400.0,0.00019178,2]
[360877690,1747095047926,-400.0,0.00019178,2]
[360877691,1747095047936,-497.13,0.00019178,2]
[360877692,1747095047945,-962.81,0.00019178,2]
[360877693,1747095047955,-400.0,0.00019178,2]
[360877694,1747095047965,-400.0,0.00019178,2]
[360877695,1747095047975,-191.526324,0.00019178,2]
[360877696,1747095047985,-400.0,0.00019178,2]
[360877697,1747095047994,-151.0,0.00019178,2]
[360877698,1747095048005,-400.0,0.00019178,2]
[360877699,1747095048014,-260.07102144,0.00019178,2]
[360877700,1747095048024,-1000.0,0.00019178,2]
[360877701,1747095048034,-191.526324,0.00019178,2]
[360877702,1747095048043,-400.0,0.00019178,2]
[360877703,1747095048053,-497.46,0.00019178,2]
[360877704,1747095048062,-400.0,0.00019178,2]
[360877705,1747095048072,-577.67,0.00019178,2]
[360877706,1747095048081,-400.0,0.00019178,2]
[360877707,1747095048091,-151.0,0.00019178,2]
[360877708,1747095048103,-400.0,0.00019178,2]
[360877709,1747095048113,-557.75,0.00019178,2]
[360877710,1747095048123,-745.5,0.00019178,2]
[360877711,1747095048133,-432.27,0.00019178,2]
[360877712,1747095048143,-400.0,0.00019178,2]
[360877713,1747095048153,-400.0,0.00019178,2]
[360877714,1747095048167,-400.0,0.00019178,2]
[360877715,1747095048179,-827.27,0.00019178,2]
[360877716,1747095048189,-400.0,0.00019178,2]
[360877717,1747095048198,-400.0,0.00019178,2]
[360877718,1747095048209,-400.0,0.00019178,2]
[360877719,1747095048219,-553.55,0.00019178,2]
[360877720,1747095048228,-478.61,0.00019178,2]
[360877721,1747095048238,-400.0,0.00019178,2]
[360877722,1747095048251,-400.0,0.00019178,2]
[360877723,1747095048261,-356.422408,0.00019178,2]
[360877724,1747095048271,-400.0,0.00019178,2]
[360877725,1747095048282,-400.0,0.00019178,2]
[360877726,1747095048291,-1197.82,0.00019178,2]
[360877727,1747095048300,-690.1,0.00019178,2]
[360877728,1747095048310,-400.0,0.00019178,2]
[360877729,1747095048321,-400.0,0.00019178,2]
[360877730,1747095048330,-1104.6,0.00019178,2]
[360877731,1747095048340,-400.0,0.00019178,2]
[360877732,1747095048350,-356.422408,0.00019178,2]
[360877733,1747095048360,-1281.69,0.00019178,2]
[360877734,1747095048370,-1109.33,0.00019178,2]
[360877735,1747095048379,-1262.78,0.00019178,2]
[360877736,1747095048389,-1241.06,0.00019178,2]
[360877737,1747095048399,-593.86,0.00019178,2]
[360877738,1747095048408,-400.0,0.00019178,2]
[360877739,1747095048418,-400.0,0.00019178,2]
[360877740,1747095048428,-400.0,0.00019178,2]
[360877741,1747095048438,-400.0,0.00019178,2]
[360877742,1747095048448,-579.85,0.00019178,2]
[360877743,1747095048457,-400.0,0.00019178,2]
[360877744,1747095048467,-400.0,0.00019178,2]
[360877745,1747095048477,-400.0,0.00019178,2]
[360877746,1747095048487,-546.05,0.00019178,2]
[360877747,1747095048498,-400.0,0.00019178,2]
[360877748,1747095048507,-309.25778049,0.00019178,2]
[360877749,1747095048517,-2258.050333,0.00019178,2]
[360877750,1747095048527,-400.0,0.00019178,2]
[360877751,1747095048537,-3890.18,0.00019178,2]
[360877752,1747095048546,-400.0,0.00019178,2]
[360877753,1747095048557,-400.0,0.00019178,2]
[360877754,1747095048566,-400.0,0.00019178,2]
[360877755,1747095048576,-400.0,0.00019178,2]
[360877756,1747095048585,-2648.1,0.00019178,2]
[360877757,1747095048596,-598.71,0.00019178,2]
[360877758,1747095048607,-1013.37,0.00019178,2]
[360877759,1747095048617,-400.0,0.00019178,2]
[360877760,1747095048627,-216.380859,0.00019178,2]
[360877761,1747095048638,-2600.47,0.00019178,2]
[360877762,1747095048647,-536.57,0.00019178,2]
[360877763,1747095048657,-424.53,0.00019178,2]
[360877764,1747095048667,-822.09,0.00019178,2]
[360877765,1747095048677,-216.380859,0.00019178,2]
[360877766,1747095048687,-400.0,0.00019178,2]
[360877767,1747095048696,-400.0,0.00019178,2]
[360877768,1747095048705,-420.95,0.00019178,2]
[360877769,1747095048715,-400.0,0.00019178,2]
[360877770,1747095048724,-400.0,0.00019178,2]
[360877771,1747095048733,-400.0,0.00019178,2]
[360877772,1747095048742,-400.0,0.00019178,2]
[360877773,1747095048751,-2294.07,0.00019178,2]
[360877774,1747095048760,-400.0,0.00019178,2]
[360877775,1747095048769,-521.95,0.00019178,2]
[360877776,1747095048778,-400.0,0.00019178,2]
[360877777,1747095048788,-3221.19,0.00019178,2]
[360877778,1747095048797,-400.0,0.00019178,2]
[360877779,1747095048806,-660.08,0.00019178,2]
[360877780,1747095048816,-400.0,0.00019178,2]
[360877781,1747095048825,-151.0,0.00019178,2]
[360877782,1747095048834,-400.0,0.00019178,2]
[360877783,1747095048843,-526.49,0.00019178,2]
[360877784,1747095048853,-755.42,0.00019178,2]
[360877785,1747095048862,-489.37,0.00019178,2]
[360877786,1747095048871,-2259.65,0.00019178,2]
[360877787,1747095048880,-400.0,0.00019178,2]
[360877788,1747095048889,-3997.17,0.00019178,2]
[360877789,1747095048898,-408.17,0.00019178,2]
[360877790,1747095048907,-400.0,0.00019178,2]
[360877791,1747095048917,-796.22,0.00019178,2]
[360877792,1747095048926,-400.0,0.00019178,2]
[360877793,1747095048936,-238.08611199,0.00019178,2]
[360877794,1747095048945,-400.0,0.00019178,2]
[360877795,1747095048954,-1278.21,0.00019178,2]
[360877796,1747095048963,-500.0,0.00019178,2]
[360877797,1747095048972,-350.979608,0.00019178,2]
[360877798,1747095048981,-400.0,0.00019178,2]
[360877799,1747095048990,-500.0,0.00019178,2]
[360877800,1747095048999,-400.0,0.00019178,2]
[360877801,1747095049008,-500.0,0.00019178,2]
[360877802,1747095049018,-500.0,0.00019178,2]
[360877803,1747095049027,-500.0,0.00019178,2]
[360877804,1747095049036,-500.0,0.00019178,2]
[360877805,1747095049045,-500.0,0.00019178,2]
[360877806,1747095049055,-500.0,0.00019178,2]
[360877807,1747095049064,-500.0,0.00019178,2]
[360877808,1747095049074,-500.0,0.00019178,2]
[360877809,1747095049083,-500.0,0.00019178,2]
[360877810,1747095049091,-511.56,0.00019178,2]
[360877811,1747095049100,-500.0,0.00019178,2]
[360877812,1747095049110,-500.0,0.00019178,2]
[360877813,1747095049119,-267.72743359,0.00019178,2]
[360877814,1747095049128,-350.979608,0.00019178,2]
[360877815,1747095049137,-400.0,0.00019178,2]
[360877816,1747095049147,-400.0,0.00019178,2]
[360877817,1747095049157,-400.0,0.00019178,2]
[360877818,1747095049167,-400.0,0.00019178,2]
[360877819,1747095049177,-1183.95,0.00019178,2]
[360877820,1747095049186,-400.0,0.00019178,2]
[360877821,1747095049196,-807.11,0.00019178,2]
[360877822,1747095049206,-400.0,0.00019178,2]
[360877823,1747095049215,-400.0,0.00019178,2]
[360877824,1747095049224,-3183.77,0.00019178,2]
[360877825,1747095049234,-151.0,0.00019178,2]
[360877826,1747095049246,-400.0,0.00019178,2]
[360877827,1747095049255,-1967.57,0.00019178,2]
[360877828,1747095049265,-154.303107,0.00019178,2]
[360877829,1747095049274,-454.41,0.00019178,2]
[360877830,1747095049283,-714.26,0.00019178,2]
[360877831,1747095049292,-400.0,0.00019178,2]
[360877832,1747095049301,-400.0,0.00019178,2]
[360877833,1747095049310,-652.63,0.00019178,2]
[360877834,1747095049319,-400.0,0.00019178,2]
[360877835,1747095049328,-570.846157,0.00019178,2]
[360877836,1747095049337,-400.0,0.00019178,2]
[360877837,1747095049347,-2710.82,0.00019178,2]
[360877838,1747095049357,-400.0,0.00019178,2]
[360877839,1747095049366,-1001.07,0.00019178,2]
[360877840,1747095049376,-570.846157,0.00019178,2]
[360877841,1747095049385,-400.0,0.00019178,2]
[360877842,1747095049394,-400.0,0.00019178,2]
[360877843,1747095049403,-400.0,0.00019178,2]
[360877844,1747095049412,-400.0,0.00019178,2]
[360877845,1747095049422,-151.0,0.00019178,2]
[360877846,1747095049432,-400.0,0.00019178,2]
[360877847,1747095049442,-444.37,0.00019178,2]
[360877848,1747095049452,-400.0,0.00019178,2]
[360877849,1747095049462,-400.0,0.00019178,2]
[360877850,1747095049472,-400.0,0.00019178,2]
[360877851,1747095049481,-151.0,0.00019178,2]
[360877852,1747095049491,-400.0,0.00019178,2]
[360877853,1747095049500,-1618.78,0.00019178,2]
[360877854,1747095049509,-400.0,0.00019178,2]
[360877855,1747095049518,-478.21,0.00019178,2]
[360877856,1747095049528,-460.38,0.00019178,2]
[360877857,1747095049537,-630.64,0.00019178,2]
[360877858,1747095049547,-400.0,0.00019178,2]
[360877859,1747095049557,-1023.44,0.00019178,2]
[360877860,1747095049567,-400.0,0.00019178,2]
[360877861,1747095049576,-400.0,0.00019178,2]
[360877862,1747095049586,-400.0,0.00019178,2]
[360877863,1747095049595,-151.0,0.00019178,2]
[360877864,1747095049605,-1128.48,0.00019178,2]
[360877865,1747095049615,-400.0,0.00019178,2]
[360877866,1747095049625,-400.0,0.00019178,2]
[360877867,1747095049634,-400.0,0.00019178,2]
[360877868,1747095049644,-795.55,0.00019178,2]
[360877869,1747095049653,-400.0,0.00019178,2]
[360877870,1747095049663,-2640.53,0.00019178,2]
[360877871,1747095049672,-400.0,0.00019178,2]
[360877872,1747095049681,-400.0,0.00019178,2]
[360877873,1747095049691,-4865.74,0.00019178,2]
[360877874,1747095049700,-400.0,0.00019178,2]
[360877875,1747095049709,-1826.43,0.00019178,2]
[360877876,1747095049719,-846.01,0.00019178,2]
[360877877,1747095049728,-400.0,0.00019178,2]
[360877878,1747095049737,-1394.72,0.00019178,2]
[360877879,1747095049745,-400.0,0.00019178,2]
[360877880,1747095049754,-408.45,0.00019178,2]
[360877881,1747095049764,-453.97,0.00019178,2]
[360877882,1747095049773,-931.98,0.00019178,2]
[360877883,1747095049782,-151.0,0.00019178,2]
[360877884,1747095049791,-400.0,0.00019178,2]
[360877885,1747095049800,-400.0,0.00019178,2]
[360877886,1747095049809,-400.0,0.00019178,2]
[360877887,1747095049819,-400.0,0.00019178,2]
[360877888,1747095049829,-400.0,0.00019178,2]
[360877889,1747095049838,-1039.23,0.00019178,2]
[360877890,1747095049847,-400.0,0.00019178,2]
[360877891,1747095049858,-400.0,0.00019178,2]
[360877892,1747095049867,-759.46,0.00019178,2]
[360877893,1747095049877,-400.0,0.00019178,2]
[360877894,1747095049886,-495.98,0.00019178,2]
[360877895,1747095049895,-1421.12,0.00019178,2]
[360877896,1747095049904,-484.89,0.00019178,2]
[360877897,1747095049914,-1436.22,0.00019178,2]
[360877898,1747095049923,-400.0,0.00019178,2]
[360877899,1747095049932,-493.97092084,0.00019178,2]
[360877900,1747095049941,-400.0,0.00019178,2]
[360877901,1747095049952,-400.0,0.00019178,2]
[360877902,1747095049961,-480.05,0.00019178,2]
[360877903,1747095049970,-463.03,0.00019178,2]
[360877904,1747095049979,-253.692,0.00019178,2]
[360877905,1747095049988,-5106.33,0.00019178,2]
[360877906,1747095049997,-400.0,0.00019178,2]
[360877907,1747095050006,-400.0,0.00019178,2]
[360877908,1747095050204,-688.72,0.00019178,2]
[360877909,1747095050215,-271.8235369,0.00019178,2]
[360877910,1747095050224,-636.69,0.00019178,2]
[360877911,1747095050233,-870.11,0.00019178,2]
[360877912,1747095050245,-400.0,0.00019178,2]
[360877913,1747095050254,-400.0,0.00019178,2]
[360877914,1747095050263,-400.0,0.00019178,2]
[360877915,1747095050271,-400.0,0.00019178,2]
[360877916,1747095050280,-253.692,0.00019178,2]
[360877917,1747095050289,-400.0,0.00019178,2]
[360877918,1747095050298,-400.0,0.00019178,2]
[360877919,1747095050306,-400.0,0.00019178,2]
[360877920,1747095050315,-672.83,0.00019178,2]
[360877921,1747095050324,-1764.38,0.00019178,2]
[360877922,1747095050334,-566.99,0.00019178,2]
[360877923,1747095050343,-400.0,0.00019178,2]
[360877924,1747095050352,-781.91,0.00019178,2]
[360877925,1747095050363,-400.0,0.00019178,2]
[360877926,1747095050373,-400.0,0.00019178,2]
[360877927,1747095050382,-400.0,0.00019178,2]
[360877928,1747095050391,-400.0,0.00019178,2]
[360877929,1747095050400,-400.0,0.00019178,2]
[360877930,1747095050409,-400.0,0.00019178,2]
[360877931,1747095050418,-1535.95,0.00019178,2]
[360877932,1747095050429,-520.66,0.00019178,2]
[360877933,1747095050438,-1248.23,0.00019178,2]
[360877934,1747095050448,-400.0,0.00019178,2]
[360877935,1747095050457,-400.0,0.00019178,2]
[360877936,1747095050467,-590.46,0.00019178,2]
[360877937,1747095050476,-380.64165127,0.00019178,2]
[360877938,1747095050485,-173.227874,0.00019178,2]
[360877939,1747095050494,-400.0,0.00019178,2]
[360877940,1747095050504,-531.51,0.00019178,2]
[360877941,1747095050513,-400.0,0.00019178,2]
[360877942,1747095050522,-400.0,0.00019178,2]
[360877943,1747095050532,-400.0,0.00019178,2]
[360877944,1747095050541,-4146.55,0.00019178,2]
[360877945,1747095050550,-400.0,0.00019178,2]
[360877946,1747095050559,-1196.75,0.00019178,2]
[360877947,1747095050569,-400.0,0.00019178,2]
[360877948,1747095050579,-173.227874,0.00019178,2]
[360877949,1747095050588,-400.0,0.00019178,2]
[360877950,1747095050597,-400.0,0.00019178,2]
[360877951,1747095050607,-400.0,0.00019178,2]
[360877952,1747095050616,-1146.44,0.00019178,2]
[360877953,1747095050625,-2720.14,0.00019178,2]
[360877954,1747095050634,-400.0,0.00019178,2]
[360877955,1747095050643,-4441.23,0.00019178,2]
[360877956,1747095050652,-781.3,0.00019178,2]
[360877957,1747095050661,-400.0,0.00019178,2]
[360877958,1747095050670,-777.94,0.00019178,2]
[360877959,1747095050679,-400.0,0.00019178,2]
[360877960,1747095050688,-400.0,0.00019178,2]
[360877961,1747095050697,-1552.19,0.00019178,2]
[360877962,1747095050706,-400.0,0.00019178,2]
[360877963,1747095050715,-1319.21,0.00019178,2]
[360877964,1747095050724,-330.19118504,0.00019178,2]
[360877965,1747095050733,-400.0,0.00019178,2]
[360877966,1747095050742,-783.16,0.00019178,2]
[360877967,1747095050751,-574.174314,0.00019178,2]
[360877968,1747095050760,-1311.31,0.00019178,2]
[360877969,1747095050769,-1211.94,0.00019178,2]
[360877970,1747095050778,-2470.14,0.00019178,2]
[360877971,1747095050788,-400.0,0.00019178,2]
[360877972,1747095050797,-450.21,0.00019178,2]
[360877973,1747095050806,-3573.67,0.00019178,2]
[360877974,1747095050815,-259.86875732,0.00019178,2]
[360877975,1747095050824,-564.25,0.00019178,2]
[360877976,1747095050833,-574.174314,0.00019178,2]
[360877977,1747095050841,-3147.4,0.00019178,2]
[360877978,1747095050849,-193.1513668,0.00019178,2]
[360877979,1747095050859,-699.83,0.00019178,2]
[360877980,1747095050867,-400.0,0.00019178,2]
[360877981,1747095050876,-1422.47,0.00019178,2]
[360877982,1747095050885,-1954.8,0.00019178,2]
[360877983,1747095050895,-787.51,0.00019178,2]
[360877984,1747095050903,-181.79813,0.00019178,2]
[360877985,1747095050912,-788.3,0.00019178,2]
[360877986,1747095050922,-400.0,0.00019178,2]
[360877987,1747095050931,-400.0,0.00019178,2]
[360877988,1747095050940,-400.0,0.00019178,2]
[360877989,1747095050949,-592.07,0.00019178,2]
[360877990,1747095050958,-2023.85,0.00019178,2]
[360877991,1747095050968,-3556.51,0.00019178,2]
[360877992,1747095050977,-9923.74,0.00019178,2]
[360877993,1747095050986,-400.0,0.00019178,2]
[360877994,1747095050995,-400.0,0.00019178,2]
[360877995,1747095051004,-181.79813,0.00019178,2]
[360877996,1747095051013,-400.0,0.00019178,2]
[360877997,1747095051022,-4159.99,0.00019178,2]
[360877998,1747095051032,-26015.36,0.00019178,2]
[360877999,1747095051040,-400.0,0.00019178,2]
[360878000,1747095051049,-400.0,0.00019178,2]
[360878001,1747095051058,-400.0,0.00019178,2]
[360878002,1747095051068,-400.0,0.00019178,2]
[360878003,1747095051077,-400.0,0.00019178,2]
[360878004,1747095051088,-822.84,0.00019178,2]
[360878005,1747095051097,-400.0,0.00019178,2]
[360878006,1747095051107,-4587.81,0.00019178,2]
[360878007,1747095051116,-222.93673855,0.00019178,2]
[360878008,1747095051125,-400.0,0.00019178,2]
[360878009,1747095051135,-400.0,0.00019178,2]
[360878010,1747095051144,-151.0,0.00019178,2]
[360878011,1747095051153,-400.0,0.00019178,2]
[360878012,1747095051164,-647.27,0.00019178,2]
[360878013,1747095051176,-400.0,0.00019178,2]
[360878014,1747095051185,-400.0,0.00019178,2]
[360878015,1747095051194,-279.83323259,0.00019178,2]
[360878016,1747095051203,-151.0,0.00019178,2]
[360878017,1747095051213,-1441.16,0.00019178,2]
[360878018,1747095051222,-400.0,0.00019178,2]
[360878019,1747095051233,-19903.05,0.00019178,2]
[360878020,1747095051243,-2751.4,0.00019178,2]
[360878021,1747095051253,-400.0,0.00019178,2]
[360878022,1747095051263,-400.0,0.00019178,2]
[360878023,1747095051272,-400.0,0.00019178,2]
[360878024,1747095051282,-400.0,0.00019178,2]
[360878025,1747095051291,-400.0,0.00019178,2]
[360878026,1747095051299,-688.62,0.00019178,2]
[360878027,1747095051308,-1093.44,0.00019178,2]
[360878028,1747095051316,-415.79,0.00019178,2]
[360878029,1747095051325,-514.43,0.00019178,2]
[360878030,1747095051335,-508.74,0.00019178,2]
[360878031,1747095051344,-412.74,0.00019178,2]
[360878032,1747095051354,-4170.83,0.00019178,2]
[360878033,1747095051365,-400.0,0.00019178,2]
[360878034,1747095051374,-400.0,0.00019178,2]
[360878035,1747095051383,-400.0,0.00019178,2]
[360878036,1747095051394,-906.56,0.00019178,2]
[360878037,1747095051403,-2234.24,0.00019178,2]
[360878038,1747095051413,-400.0,0.00019178,2]
[360878039,1747095051422,-400.0,0.00019178,2]
[360878040,1747095051432,-400.0,0.00019178,2]
[360878041,1747095051441,-400.0,0.00019178,2]
[360878042,1747095051450,-400.0,0.00019178,2]
[360878043,1747095051460,-531.83,0.00019178,2]
[360878044,1747095051469,-9596.31,0.00019178,2]
[360878045,1747095051478,-400.0,0.00019178,2]
[360878046,1747095051487,-1372.7,0.00019178,2]
[360878047,1747095051498,-400.0,0.00019178,2]
[360878048,1747095051508,-400.0,0.00019178,2]
[360878049,1747095051517,-400.0,0.00019178,2]
[360878050,1747095051527,-400.0,0.00019178,2]
[360878051,1747095051536,-400.0,0.00019178,2]
[360878052,1747095051546,-400.0,0.00019178,2]
[360878053,1747095051555,-1686.75,0.00019178,2]
[360878054,1747095051564,-3432.89,0.00019178,2]
[360878055,1747095051573,-400.0,0.00019178,2]
[360878056,1747095051582,-400.0,0.00019178,2]
[360878057,1747095051592,-400.0,0.00019178,2]
[360878058,1747095051601,-400.0,0.00019178,2]
[360878059,1747095051611,-1641.38,0.00019178,2]
[360878060,1747095051620,-400.0,0.00019178,2]
[360878061,1747095051629,-400.0,0.00019178,2]
[360878062,1747095051638,-880.54,0.00019178,2]
[360878063,1747095051647,-400.0,0.00019178,2]
[360878064,1747095051656,-400.0,0.00019178,2]
[360878065,1747095051666,-696.76,0.00019178,2]
[360878066,1747095051675,-400.0,0.00019178,2]
[360878067,1747095051684,-1445.51,0.00019178,2]
[360878068,1747095051693,-3283.31,0.00019178,2]
[360878069,1747095051703,-896.38,0.00019178,2]
[360878070,1747095051712,-400.0,0.00019178,2]
[360878071,1747095051721,-400.0,0.00019178,2]
[360878072,1747095051730,-400.0,0.00019178,2]
[360878073,1747095051739,-400.0,0.00019178,2]
[360878074,1747095051749,-400.0,0.00019178,2]
[360878075,1747095051759,-1260.99,0.00019178,2]
[360878076,1747095051767,-514.25,0.00019178,2]
[360878077,1747095051776,-2705.43,0.00019178,2]
[360878078,1747095051786,-2463.3,0.00019178,2]
[360878079,1747095051795,-400.0,0.00019178,2]
[360878080,1747095051804,-1796.26,0.00019178,2]
[360878081,1747095051813,-500.0,0.00019178,2]
[360878082,1747095051822,-400.0,0.00019178,2]
[360878083,1747095051832,-400.0,0.00019178,2]
[360878084,1747095051841,-740.7,0.00019178,2]
[360878085,1747095051851,-400.0,0.00019178,2]
[360878086,1747095051860,-400.0,0.00019178,2]
[360878087,1747095051869,-400.0,0.00019178,2]
[360878088,1747095051879,-1074.96,0.00019178,2]
[360878089,1747095051888,-588.89,0.00019178,2]
[360878090,1747095051897,-400.0,0.00019178,2]
[360878091,1747095051919,-400.0,0.00019178,2]
[360878092,1747095051928,-621.87,0.00019178,2]
[360878093,1747095051938,-684.55,0.00019178,2]
[360878094,1747095051948,-5937.43,0.00019178,2]
[360878095,1747095051958,-400.0,0.00019178,2]
[360878096,1747095051967,-300.0,0.00019178,2]
[360878097,1747095051977,-400.0,0.00019178,2]
[360878098,1747095051986,-400.0,0.00019178,2]
[360878099,1747095051996,-400.0,0.00019178,2]
[360878100,1747095052005,-400.0,0.00019178,2]
[360878101,1747095052015,-400.0,0.00019178,2]
[360878102,1747095052025,-8567.6,0.00019178,2]
[360878103,1747095052034,-956.42,0.00019178,2]
[360878104,1747095052043,-641.44,0.00019178,2]
[360878105,1747095052053,-400.0,0.00019178,2]
[360878106,1747095052062,-400.0,0.00019178,2]
[360878107,1747095052072,-400.0,0.00019178,2]
[360878108,1747095052081,-577.634342,0.00019178,2]
[360878109,1747095052091,-577.634342,0.00019178,2]
[360878110,1747095052100,-2548.36,0.00019178,2]
[360878111,1747095052111,-1942.99,0.00019178,2]
[360878112,1747095052120,-1275.76,0.00019178,2]
[360878113,1747095052131,-1540.25,0.00019178,2]
[360878114,1747095052140,-400.0,0.00019178,2]
[360878115,1747095052150,-577.634342,0.00019178,2]
[360878116,1747095052161,-577.634342,0.00019178,2]
[360878117,1747095052173,-400.0698514,0.00019178,2]
[360878118,1747095052182,-553.72,0.00019178,2]
[360878119,1747095052191,-400.0,0.00019178,2]
[360878120,1747095052201,-1305.91,0.00019178,2]
[360878121,1747095052213,-400.0,0.00019178,2]
[360878122,1747095052222,-400.0,0.00019178,2]
[360878123,1747095052232,-3687.82,0.00019178,2]
[360878124,1747095052245,-1318.19,0.00019178,2]
[360878125,1747095052255,-400.0,0.00019178,2]
[360878126,1747095052264,-400.0,0.00019178,2]
[360878127,1747095052274,-10569.91,0.00019178,2]
[360878128,1747095052284,-511.49,0.00019178,2]